fUSD/lending_fUSD_20260126
["ID","MTS","AMOUNT","RATE_DAILY","PERIOD"]
[403665141,1769455844694,-300.0,0.00017449,2]
[403665142,1769455844704,-250.0,0.00017451,2]
[403665143,1769455844714,-254.46436411,0.00017457,2]
[403665144,1769455844725,-1900.0,0.000175,6]
[403665145,1769455844735,-195.0,0.00017552,2]
[403665146,1769455844744,-300.0,0.00017552,2]
[403665147,1769455844754,-200.0,0.00017552,2]
[403665148,1769455844764,-200.0,0.00017552,2]
[403665149,1769455844774,-200.0,0.00017552,2]
[403665150,1769455844784,-200.0,0.00017552,2]
[403665151,1769455844794,-208.68914964,0.00017552,2]
[403665152,1769455844805,-737.0,0.00017556,2]
[403665153,1769455844816,-2500.0,0.000176,6]
[403665154,1769455844826,-194.72792766,0.000176,2]
[403665155,1769455844838,-322.62806671,0.000176,2]
[403665156,1769455844848,-151.0,0.000176,2]
[403665157,1769455844858,-918.64355495,0.000176,2]
[403665158,1769455844869,-298.38623915,0.000176,2]
[403665159,1769455844881,-500.0,0.000176,2]
[403665160,1769455844891,-737.0,0.00017604,2]
[403665161,1769455844900,-890.0,0.00017609,2]
[403665162,1769455844910,-2442.0,0.00017659,2]
[403665163,1769455844919,-1333.0,0.00017659,2]
[403665164,1769455844929,-3477.0,0.00017659,2]
[403665165,1769455844940,-438.0,0.00017671,2]
[403665166,1769455844950,-5166.21725144,0.00017674,2]
[403665167,1769455844959,-500.0,0.00017695,2]
[403665168,1769455844969,-500.0,0.00017699,2]
[403665169,1769455844978,-500.0,0.00017699,2]
[403665170,1769455844987,-500.0,0.00017699,2]
[403665171,1769455844996,-541.65463355,0.00017699,2]
[403665172,1769455845007,-500.0,0.00017699,2]
[403665173,1769455845017,-500.0,0.00017699,2]
[403665174,1769455845027,-500.0,0.00017699,2]
[403665175,1769455845037,-500.0,0.00017699,2]
[403665176,1769455845047,-500.0,0.00017699,2]
[403665177,1769455845057,-500.0,0.00017699,2]
[403665178,1769455845066,-500.0,0.00017699,2]
[403665179,1769455845078,-3100.0,0.000177,6]
[403665180,1769455845087,-1733.4895823,0.00017709,2]
[403665181,1769455845096,-737.0,0.00017765,2]
[403665182,1769455845105,-867.98,0.00017798,2]
[403665183,1769455845115,-2000.0,0.000178,2]
[403665184,1769455845125,-600.0,0.000178,6]
[403665185,1769455845134,-200.0,0.00017808,5]
[403665186,1769455845143,-200.0,0.00017808,5]
[403665187,1769455845153,-200.0,0.00017808,5]
[403665188,1769455845163,-200.0,0.00017808,5]
[403665189,1769455845172,-200.0,0.00017808,5]
[403665190,1769455845182,-200.0,0.00017808,5]
[403665191,1769455845192,-200.0,0.00017808,5]
[403665192,1769455845201,-200.0,0.00017808,5]
[403665193,1769455845212,-200.0,0.00017808,5]
[403665194,1769455845221,-200.0,0.00017808,5]
[403665195,1769455845230,-200.0,0.00017808,5]
[403665196,1769455845239,-300.0,0.00017808,5]
[403665197,1769455845248,-5446.0,0.00017815,2]
[403665198,1769455845258,-2256.26623761,0.00017815,2]
[403665199,1769455845267,-3980.32108693,0.00017815,2]
[403665200,1769455845277,-5954.32229868,0.00017815,2]
[403665201,1769455845286,-8056.4022,0.00017815,2]
[403665202,1769455845296,-737.0,0.00017861,2]
[403665203,1769455845305,-166.66,0.00017863,2]
[403665204,1769455845315,-184.0,0.00017872,2]
[403665205,1769455845324,-1269.0,0.00017872,2]
[403665206,1769455845334,-916.0,0.00017872,2]
[403665207,1769455845343,-1204.0,0.00017872,2]
[403665208,1769455845352,-890.06466997,0.00017883,2]
[403665209,1769455845362,-10000.0,0.000179,2]
[403665210,1769455845372,-600.0,0.000179,6]
[403665211,1769455845381,-5166.21725144,0.000179,2]
[403665212,1769455845391,-5268.17964723,0.000179,2]
[403665214,1769455845690,-2851.17,0.00017934,2]
[403665215,1769455845702,-500.0,0.0001795,2]
[403665216,1769455845711,-16734.4805339,0.00017951,2]
[403665217,1769455845721,-521.41483801,0.00017973,2]
[403665218,1769455845732,-1500.0,0.0001798,2]
[403665219,1769455845742,-307.45601862,0.0001799,2]
[403665220,1769455845752,-307.45601862,0.0001799,2]
[403665221,1769455845761,-500.0,0.00017999,2]
[403665222,1769455845771,-500.0,0.00017999,2]
[403665223,1769455845780,-500.0,0.00017999,2]
[403665224,1769455845789,-255.56,0.00017999,2]
[403665225,1769455845798,-500.0,0.00017999,2]
[403665226,1769455845807,-226.94622895,0.00017999,2]
[403665227,1769455845816,-500.0,0.00017999,2]
[403665228,1769455845826,-500.0,0.00017999,2]
[403665229,1769455845837,-500.0,0.00017999,2]
[403665230,1769455845846,-500.0,0.00017999,2]
[403665231,1769455845856,-500.0,0.00017999,2]
[403665232,1769455845866,-500.0,0.00017999,2]
[403665233,1769455845875,-600.40964335,0.00017999,2]
[403665234,1769455845884,-500.0,0.00017999,2]
[403665235,1769455845893,-306.06500178,0.00017999,2]
[403665236,1769455845903,-500.0,0.00017999,2]
[403665237,1769455845916,-531.4641031,0.00017999,2]
[403665238,1769455845925,-462.63319291,0.00017999,2]
[403665239,1769455845936,-2868410.41071762,0.00018,2]
[403665240,1769455845945,-1480864.02459953,0.00018,2]
[403665241,1769455845955,-400.0,0.00018,2]
[403665242,1769455845964,-151.0,0.00018,2]
[403665243,1769455845973,-200.0,0.00018,2]
[403665244,1769455845983,-151.4199,0.00018,2]
[403665245,1769455845992,-151.0,0.00018,2]
[403665246,1769455846004,-151.0,0.00018,2]
[403665247,1769455846014,-151.0,0.00018,2]
[403665248,1769455846024,-151.0,0.00018,2]
[403665249,1769455846034,-151.0,0.00018,2]
[403665250,1769455846043,-151.0,0.00018,2]
[403665251,1769455846052,-151.0,0.00018,2]
[403665252,1769455846062,-1000886.41219992,0.00018,2]
[403665257,1769455847531,-531.00846507,0.00015863,2]
[403665258,1769455847541,-100.42150264,0.00015955,2]
[403665259,1769455847862,-299.88000001,0.00015955,2]
[403665260,1769455848370,-99.69849735,0.00015955,2]
[403665261,1769455848380,-366.70159581,0.00015955,2]
[403665262,1769455848391,-133.29840419,0.00015955,2]
[403665263,1769455848401,-500.0,0.00015955,2]
[403665264,1769455848411,-500.0,0.00015955,2]
[403665265,1769455848420,-500.0,0.00015955,2]
[403665266,1769455848430,-500.0,0.00015955,2]
[403665267,1769455848440,-500.0,0.00015955,2]
[403665268,1769455848449,-500.0,0.00015955,2]
[403665269,1769455848458,-500.0,0.00015955,2]
[403665270,1769455848467,-9160.91605802,0.00017426,2]
[403665271,1769455848477,-61071.28833731,0.00018,2]
[403665272,1769455848488,-15657.57920899,0.00018,2]
[403665273,1769455848499,-5326.96794812,0.00018,2]
[403665274,1769455848510,-521.9457999,0.00018,2]
[403665275,1769455848522,-541.99999974,0.00018,2]
[403665276,1769455848533,-390.85000003,0.00018,2]
[403665277,1769455848544,-1767.48,0.00018,2]
[403665278,1769455848559,-2485.05909885,0.00018,2]
[403665280,1769455870105,-230.81844795,0.00015863,2]
[403665281,1769455873129,-269.18155205,0.00015863,2]
[403665282,1769455873150,-24.5309675,0.00015863,2]
[403665284,1769455915681,-226.62368792,0.00015863,2]
[403665285,1769455918343,-196.44286658,0.00015863,2]
[403665287,1769455951362,-52.402478,0.00015863,2]
[403665288,1769455951389,-500.0,0.00015863,2]
[403665289,1769455951418,-500.0,0.00015863,2]
[403665290,1769455951448,-500.0,0.00015863,2]
[403665291,1769455951474,-500.0,0.00015863,2]
[403665292,1769455951501,-500.0,0.00015863,2]
[403665293,1769455951527,-500.0,0.00015863,2]
[403665294,1769455968954,-250.0,0.00015863,2]
[403665295,1769455968976,-50.0,0.00015863,2]
[403665296,1769455971873,-128.98160772,0.00015863,2]
[403665297,1769455971894,-26.67903427,0.00015863,2]
[403665298,1769455972711,10000.01,0.00015764,2]
[403665299,1769455972741,10000.01,0.00015764,2]
[403665300,1769455972766,10000.01,0.00015764,2]
[403665301,1769455972790,10000.01,0.00015764,2]
[403665302,1769455972816,10000.01,0.00015764,2]
[403665303,1769455973914,-230.16055486,0.00015764,2]
[403665304,1769455976244,181.83,0.00013412,2]
[403665305,1769455978052,-161.83096501,0.00015764,2]
[403665306,1769455980011,-10000.01,0.00015764,2]
[403665307,1769455982809,-300.0,0.00015763,2]
[403665308,1769455982863,-25.05363435,0.00015763,2]
[403665309,1769455986639,-157.0,0.00015001,2]
[403665310,1769455986678,-143.0,0.00015763,2]
[403665311,1769455989380,-131.94636565,0.00015763,2]
[403665312,1769455989419,-56.30366301,0.00015764,2]
[403665313,1769455991491,-175.19283792,0.00015764,2]
[403665314,1769455997521,-124.80716208,0.00015764,2]
[403665315,1769455997559,-9750.39567584,0.00015764,2]
[403665316,1769456003819,-10000.01,0.00015764,2]
[403665317,1769456019524,-300.0,0.00015664,2]
[403665318,1769456021618,-296.67228426,0.00015664,2]
[403665319,1769456023493,-379.91192631,0.00015664,2]
[403665320,1769456026850,-235.34687346,0.00015664,2]
[403665321,1769456028933,-280.0356392,0.00015664,2]
[403665322,1769456033394,-451.24011516,0.00015664,2]
[403665323,1769456035319,-170.16172132,0.00015664,2]
[403665324,1769456038596,-2.90837935,0.00015664,2]
[403665325,1769456038618,-314.95696843,0.00015763,2]
[403665326,1769456040143,-315.73649027,0.00015663,2]
[403665327,1769456042111,-210.35338043,0.00015663,2]
[403665328,1769456045070,-305.55713342,0.00015585,2]
[403665329,1769456047084,-183.85483595,0.00015585,2]
[403665330,1769456049704,-179.85757063,0.00015585,2]
[403665331,1769456049729,-2.11367056,0.00015663,2]
[403665332,1769456051316,-74.91239142,0.00015663,2]
[403665333,1769456051339,-149.0444819,0.00015664,2]
[403665334,1769456064477,-308.81049488,0.00015664,2]
[403665335,1769456067541,-145.26095588,0.00015664,2]
[403665336,1769456067563,-154.73904412,0.00015664,2]
[403665337,1769456070076,-197.75768554,0.00015664,2]
[403665338,1769456111537,1000.0,0.00012321,2]
[403665339,1769456111628,500.0,0.00011773,2]
[403665340,1769456112542,500.75682028,0.00011773,2]
[403665341,1769456113378,500.0,0.00011773,2]
[403665342,1769456114865,489.57842878,0.00011773,2]
[403665343,1769456114900,500.0,0.00011773,2]
[403665344,1769456115064,500.0,0.00011773,2]
[403665345,1769456116163,500.0,0.00011773,2]
[403665346,1769456116197,500.0,0.00011773,2]
[403665347,1769456116234,1007.32533855,0.00012321,2]
[403665348,1769456116271,1000.0,0.00012321,2]
[403665349,1769456116430,500.0,0.00011773,2]
[403665350,1769456116482,1000.0,0.00012321,2]
[403665351,1769456118040,-158.0,0.00015664,3]
[403665352,1769456118069,-250.619203,0.00015664,2]
[403665353,1769456118098,-588.36629673,0.00015664,2]
[403665354,1769456118128,-1234.18269667,0.00015763,2]
[403665355,1769456118156,-300.0,0.00015763,2]
[403665356,1769456118186,-300.0,0.00015763,2]
[403665357,1769456118216,-1200.0,0.00015763,2]
[403665358,1769456118350,500.0,0.00011773,2]
[403665359,1769456118402,-1937.6736072,0.00015764,2]
[403665360,1769456118463,-10000.01,0.00015764,2]
[403665361,1769456118787,166.67755116,0.00011773,2]
[403665362,1769456119451,500.0,0.00011773,2]
[403665363,1769456119502,303.1127939,0.00012321,2]
[403665364,1769456120237,500.0,0.00011773,2]
[403665365,1769456120269,1000.0,0.00012321,2]
[403665366,1769456121483,500.0,0.00011773,2]
[403665367,1769456121788,500.0,0.00011773,2]
[403665368,1769456121845,875.92645048,0.00012321,2]
[403665369,1769456123355,500.0,0.00011773,2]
[403665370,1769456123389,1000.0,0.00012321,2]
[403665371,1769456123423,500.0,0.00011773,2]
[403665372,1769456123456,1000.0,0.00012321,2]
[403665373,1769456124048,169.51830234,0.00011773,2]
[403665374,1769456125005,500.0,0.00011773,2]
[403665375,1769456125045,239.25914065,0.00012321,2]
[403665376,1769456125346,163.75696087,0.00011773,2]
[403665377,1769456125701,217.46506473,0.00011773,2]
[403665378,1769456126507,500.0,0.00011773,2]
[403665379,1769456126808,375.74111899,0.00012321,2]
[403665380,1769456127089,166.25784025,0.00011773,2]
[403665381,1769456127125,502.89877827,0.00011773,2]
[403665382,1769456127238,-1089.540636,0.00015585,2]
[403665383,1769456127266,-505.17359471,0.00015763,2]
[403665384,1769456127358,-6810.58153858,0.00015764,2]
[403665385,1769456127395,-10000.01,0.00015764,2]
[403665386,1769456127427,500.0,0.00011773,2]
[403665387,1769456127463,1140.50837004,0.00012321,2]
[403665388,1769456127988,500.0,0.00011773,2]
[403665389,1769456128063,1000.0,0.00012321,2]
[403665390,1769456139974,-405.28046388,0.00015664,2]
[403665391,1769456149354,-10000.01,0.00015764,2]
[403665392,1769456154853,-10000.01,0.00015764,2]
[403665393,1769456166594,500.0,0.00011773,2]
[403665394,1769456166661,1000.0,0.00012321,2]
[403665395,1769456168077,1843.5854619,7.945e-05,2]
[403665396,1769456168104,3972.4622861,7.945e-05,2]
[403665397,1769456229576,-360.45575477,0.00015664,2]
[403665398,1769456235421,500.0,0.00011773,2]
[403665399,1769456235486,500.0,0.00012321,2]
[403665400,1769456236346,-199.33802202,0.00015664,2]
[403665401,1769456241203,1000.0,0.00012321,2]
[403665402,1769456241256,500.0,0.00011773,2]
[403665403,1769456241318,1000.96059659,0.00012868,2]
[403665404,1769456241947,-168.45637445,0.00015664,2]
[403665405,1769456246930,-281.43583273,0.00015664,2]
[403665406,1769456247001,618.43431051,0.00011773,2]
[403665407,1769456247673,1000.0,0.00012321,2]
[403665408,1769456247706,2500.0,0.00013964,2]
[403665409,1769456247744,500.0,0.00011773,2]
[403665410,1769456247810,2000.0,0.00013416,2]
[403665411,1769456247845,2500.01,0.00014512,2]
[403665412,1769456247896,1500.0,0.00012868,2]
[403665413,1769456251378,-298.92588499,0.00015664,2]
[403665414,1769456253451,-250.0,0.00015664,2]
[403665415,1769456259759,-164.37935511,0.00015664,2]
[403665416,1769456261615,-302.0,0.00015664,2]
[403665417,1769456263657,-32.20602284,0.00015664,2]
[403665418,1769456263681,-209.61481776,0.00015664,2]
[403665419,1769456265211,-158.02750645,0.00015664,2]
[403665420,1769456274509,-54.40327579,0.00015664,2]
[403665421,1769456274531,-151.0,0.00015761,2]
[403665422,1769456274557,-57.65959421,0.00015762,2]
[403665423,1769456276631,-242.34040579,0.00015762,2]
[403665424,1769456276655,-11.17811162,0.00015762,2]
[403665425,1769456278965,-153.91360966,0.00015762,2]
[403665426,1769456281469,-84.90827872,0.00015762,2]
[403665427,1769456281491,-265.86743962,0.00015763,2]
[403665428,1769456289576,-153.16050535,0.00015664,2]
[403665429,1769456305118,-219.26717948,0.00015664,2]
[403665430,1769456306776,-312.29967467,0.00015664,2]
[403665432,1769456308844,-360.40344106,0.00015664,2]
[403665433,1769456311454,-373.69188948,0.00015664,2]
[403665434,1769456314402,-155.24071074,0.00015664,2]
[403665435,1769456314543,-3163.42478735,0.00015664,2]
[403665436,1769456315279,-3673.1604253,0.00015664,2]
[403665437,1769456316097,-270.18697592,0.00015664,2]
[403665438,1769456316125,-2500.0,0.00015664,2]
[403665439,1769456316153,-300.0,0.00015762,2]
[403665440,1769456316183,-500.0,0.00015762,2]
[403665441,1769456316211,-500.0,0.00015762,2]
[403665442,1769456316243,-500.0,0.00015762,2]
[403665443,1769456316272,-211.95064952,0.00015762,2]
[403665444,1769456316435,-435.73474912,0.00015762,2]
[403665445,1769456319244,-342.02113468,0.00015762,2]
[403665446,1769456319277,-500.0,0.00015762,2]
[403665447,1769456319311,-500.0,0.00015762,2]
[403665448,1769456319348,-500.0,0.00015762,2]
[403665449,1769456319379,-500.0,0.00015762,2]
[403665450,1769456319414,-500.0,0.00015762,2]
[403665451,1769456319732,-500.0,0.00015762,2]
[403665452,1769456319766,-357.66179752,0.00015762,2]
[403665453,1769456319798,-500.0,0.00015762,2]
[403665454,1769456319826,-500.0,0.00015762,2]
[403665455,1769456319860,-100.6441356,0.00015762,2]
[403665456,1769456320084,-399.3558644,0.00015762,2]
[403665457,1769456321641,-267.66914738,0.00015762,2]
[403665458,1769456322279,-232.33085262,0.00015762,2]
[403665459,1769456322310,-500.0,0.00015762,2]
[403665460,1769456322341,-500.0,0.00015762,2]
[403665461,1769456322370,-500.0,0.00015762,2]
[403665462,1769456322400,-500.0,0.00015762,2]
[403665463,1769456322429,-500.0,0.00015762,2]
[403665464,1769456322459,-500.0,0.00015762,2]
[403665465,1769456322489,-500.0,0.00015762,2]
[403665466,1769456322518,-500.0,0.00015762,2]
[403665467,1769456322548,-500.0,0.00015762,2]
[403665468,1769456322579,-35.34829476,0.00015762,2]
[403665469,1769456322803,-464.65170524,0.00015762,2]
[403665470,1769456323139,-251.22428166,0.00015762,2]
[403665471,1769456326549,-233.45275391,0.00015762,2]
[403665472,1769456328614,-15.32296443,0.00015762,2]
[403665473,1769456328644,-142.13563557,0.00015762,2]
[403665474,1769456334525,-158.22222112,0.00015762,2]
[403665475,1769456337163,-199.64214331,0.00015762,2]
[403665476,1769456337188,-28.12012131,0.00015762,2]
[403665477,1769456338745,-471.87987869,0.00015762,2]
[403665478,1769456338773,-500.0,0.00015762,2]
[403665479,1769456338799,-160.71294575,0.00015762,2]
[403665480,1769456341071,-339.28705425,0.00015762,2]
[403665481,1769456341101,-500.0,0.00015762,2]
[403665482,1769456341131,-500.0,0.00015762,2]
[403665483,1769456341161,-500.0,0.00015762,2]
[403665484,1769456341190,-500.0,0.00015762,2]
[403665485,1769456341219,-500.0,0.00015762,2]
[403665486,1769456341248,-500.0,0.00015762,2]
[403665487,1769456341277,-500.0,0.00015762,2]
[403665488,1769456341307,-500.0,0.00015762,2]
[403665489,1769456341336,-500.0,0.00015762,2]
[403665490,1769456341496,-500.0,0.00015762,2]
[403665491,1769456341527,-500.0,0.00015762,2]
[403665492,1769456341559,-500.0,0.00015762,2]
[403665493,1769456341593,-500.0,0.00015762,2]
[403665494,1769456341627,-500.0,0.00015762,2]
[403665495,1769456341657,-500.0,0.00015762,2]
[403665496,1769456341687,-500.0,0.00015762,2]
[403665497,1769456341716,-500.0,0.00015762,2]
[403665498,1769456341746,-500.0,0.00015762,2]
[403665499,1769456341780,-500.0,0.00015762,2]
[403665500,1769456342156,-500.0,0.00015762,2]
[403665501,1769456342185,-500.0,0.00015762,2]
[403665502,1769456342215,-554.43473262,0.00015763,2]
[403665503,1769456342245,-464.34215417,0.00015763,2]
[403665504,1769456342273,-500.0,0.00015763,2]
[403665505,1769456342302,-500.0,0.00015763,2]
[403665506,1769456342330,-500.0,0.00015763,2]
[403665507,1769456342362,-500.0,0.00015763,2]
[403665508,1769456342392,-500.0,0.00015763,2]
[403665509,1769456342421,-411.66987178,0.00015763,2]
[403665510,1769456342522,-500.0,0.00015763,2]
[403665511,1769456342552,-500.0,0.00015763,2]
[403665512,1769456342581,-500.0,0.00015763,2]
[403665513,1769456342613,-150.0,0.00015763,2]
[403665514,1769456343046,-300.0,0.00015761,2]
[403665515,1769456343056,-57.10373733,0.00015764,2]
[403665516,1769456343070,-150.0,0.00015764,2]
[403665517,1769456343083,-6700.01,0.00015764,2]
[403665518,1769456343135,-241.40724641,0.00015761,2]
[403665519,1769456343547,173.65667082,0.00011773,2]
[403665520,1769456343882,-54.59275359,0.00015761,2]
[403665521,1769456343922,-9890.82449282,0.00015764,2]
[403665522,1769456344022,-10000.01,0.00015764,2]
[403665523,1769456344545,-177.12021746,0.00015764,2]
[403665524,1769456346312,-258.68636491,0.00015764,2]
[403665525,1769456346944,-10000.01,0.00015764,2]
[403665526,1769456364510,-250.56590749,0.00015764,2]
[403665527,1769456366085,-257.28198577,0.00015764,2]
[403665528,1769456367917,-152.90282489,0.00015764,2]
[403665529,1769456369069,-204.35792503,0.00015764,2]
[403665530,1769456370628,-242.71801423,0.00015764,2]
[403665531,1769456380102,-174.71617962,0.00015764,2]
[403665532,1769456381605,-260.85016,0.00015764,2]
[403665533,1769456384169,-208.42425293,0.00015744,2]
[403665534,1769456386298,-72.66848863,0.00015744,2]
[403665535,1769456386322,-155.11573673,0.00015764,2]
[403665536,1769456395355,-297.23533721,0.00015764,2]
[403665537,1769456396833,-266.94809082,0.00015764,2]
[403665538,1769456401184,-206.04530438,0.00015664,2]
[403665539,1769456403258,500.0,0.00011773,2]
[403665540,1769456403323,1000.0,0.00012321,2]
[403665541,1769456403352,-156.41500086,0.00015664,2]
[403665542,1769456403514,567.68971129,0.00011773,2]
[403665543,1769456405122,225.26454163,0.00011773,2]
[403665544,1769456405379,-184.95460979,0.00015664,2]
[403665545,1769456407145,-252.143357,0.00015664,2]
[403665546,1769456409476,-190.80711694,0.00015664,2]
[403665547,1769456412153,-274.61431748,0.00015664,2]
[403665549,1769456424556,-378.00494286,0.00015664,2]
[403665550,1769456426575,-331.82655358,0.00015664,2]
[403665551,1769456430118,-189.53517489,0.00015664,2]
[403665552,1769456432914,-189.36428936,0.00015664,2]
[403665553,1769456434358,-264.08,0.0001547,2]
[403665554,1769456434383,-45.63222381,0.00015664,2]
[403665555,1769456435829,-165.51566,0.00015664,2]
[403665556,1769456454568,-247.856643,0.00015664,2]
[403665557,1769456456709,-373.58055191,0.00015664,2]
[403665558,1769456458771,-175.25151122,0.00015664,2]
[403665559,1769456465983,164.5401759,0.00011773,2]
[403665560,1769456466923,500.0,0.00011773,2]
[403665561,1769456466975,1000.0,0.00012321,2]
[403665562,1769456467036,1500.0,0.00012868,2]
[403665563,1769456467087,446.80273923,0.00013416,2]
[403665564,1769456467184,278.24022797,0.00011773,2]
[403665565,1769456469657,1000.0,0.00012321,2]
[403665566,1769456469702,500.0,0.00011773,2]
[403665567,1769456469741,1500.0,0.00012868,2]
[403665568,1769456469791,2000.0,0.00013416,2]
[403665569,1769456469844,2408.40901104,0.00013964,2]
[403665570,1769456470381,-300.0,0.00015663,2]
[403665571,1769456470404,-100.51740831,0.00015664,2]
[403665572,1769456473679,-2703.26087762,0.00015664,2]
[403665573,1769456473708,-232.85220448,0.00015664,2]
[403665574,1769456473766,-4127.7838358,0.00015664,2]
[403665575,1769456480144,-3828.2239642,0.00015664,2]
[403665576,1769456480204,-2343.5620716,0.00015664,2]
[403665577,1769456499520,-262.40149038,0.00015449,2]
[403665578,1769456503272,-158.45545583,0.00015449,2]
[403665579,1769456504811,-165.51566,0.00015449,2]
[403665580,1769456509024,-165.51566,0.00015449,2]
[403665581,1769456514507,-225.66994004,0.00015449,2]
[403665582,1769456522156,-294.0920583,0.00015449,2]
[403665583,1769456523303,177.55318522,0.00011773,2]
[403665584,1769456525168,-226.00565513,0.00015449,2]
[403665585,1769456526985,-239.08805449,0.00015449,2]
[403665586,1769456533490,-319.57239449,0.00015449,2]
[403665587,1769456539675,-232.54363134,0.00015449,2]
[403665588,1769456539700,-0.45636866,0.00015449,2]
[403665589,1769456541649,-159.47121487,0.00015449,2]
[403665590,1769456543752,-25.88241647,0.00015449,2]
[403665591,1769456543788,-139.63324353,0.00015564,2]
[403665592,1769456546541,-135.24675647,0.00015564,2]
[403665593,1769456546563,-81.47728764,0.00015664,2]
[403665594,1769456551745,-74.96064076,0.00015664,2]
[403665595,1769456551768,-95.42726609,0.0001569,2]
[403665596,1769456555122,-183.95,0.00015108,2]
[403665597,1769456555148,-104.97521436,0.0001569,2]
[403665598,1769456625987,-155.234803,0.00015664,2]
[403665599,1769456626016,-1906.12,0.00015664,2]
[403665600,1769456626043,-150.0,0.00015691,2]
[403665601,1769456626070,-150.0,0.00015691,2]
[403665602,1769456626097,-150.0,0.00015691,2]
[403665603,1769456626125,-150.0,0.00015691,2]
[403665604,1769456626152,-150.0,0.00015691,2]
[403665605,1769456626179,-150.0,0.00015691,2]
[403665606,1769456626205,-150.0,0.00015691,2]
[403665607,1769456626232,-150.0,0.00015691,2]
[403665608,1769456626260,-150.0,0.00015691,2]
[403665609,1769456626290,-150.0,0.00015691,2]
[403665610,1769456626317,-150.0,0.00015746,2]
[403665611,1769456626344,-150.0,0.00015746,2]
[403665612,1769456626374,-200.0,0.00015746,2]
[403665613,1769456626402,-150.0,0.00015746,2]
[403665614,1769456626430,-150.0,0.00015746,2]
[403665615,1769456626458,-150.0,0.00015746,2]
[403665616,1769456626485,-300.0,0.00015762,2]
[403665617,1769456626512,-77.300394,0.00015762,2]
[403665618,1769456626698,-222.699606,0.00015762,2]
[403665619,1769456626725,-260.22457052,0.00015762,2]
[403665620,1769456626753,-150.85131084,0.00015762,2]
[403665621,1769456626784,-500.0,0.00015762,2]
[403665622,1769456626816,-500.0,0.00015762,2]
[403665623,1769456626856,-500.0,0.00015762,2]
[403665624,1769456626888,-500.0,0.00015762,2]
[403665625,1769456626922,-500.0,0.00015762,2]
[403665626,1769456626952,-500.0,0.00015762,2]
[403665627,1769456626984,-500.0,0.00015762,2]
[403665628,1769456627016,-500.0,0.00015762,2]
[403665629,1769456627047,-232.45902528,0.00015762,2]
[403665630,1769456627170,-267.54097472,0.00015762,2]
[403665631,1769456627200,-500.0,0.00015762,2]
[403665632,1769456627232,-500.0,0.00015762,2]
[403665633,1769456627262,-500.0,0.00015762,2]
[403665634,1769456627292,-500.0,0.00015762,2]
[403665635,1769456627322,-500.0,0.00015762,2]
[403665636,1769456627353,-500.0,0.00015762,2]
[403665637,1769456627384,-500.0,0.00015762,2]
[403665638,1769456627414,-500.0,0.00015762,2]
[403665639,1769456627444,-500.0,0.00015762,2]
[403665640,1769456628740,-257.34707972,0.00015762,2]
[403665641,1769456628811,-27.76554524,0.00015762,2]
[403665642,1769456628826,-214.88737504,0.00015762,2]
[403665643,1769456628837,-285.11262496,0.00015762,2]
[403665644,1769456628855,-214.88737504,0.00015762,2]
[403665645,1769456628864,-250.04067552,0.00015762,2]
[403665646,1769456628926,-249.95932448,0.00015762,2]
[403665647,1769456628956,-500.0,0.00015762,2]
[403665648,1769456628988,-500.0,0.00015762,2]
[403665649,1769456629017,-500.0,0.00015762,2]
[403665650,1769456629046,-500.0,0.00015762,2]